[Event "55th Rubinstein Memorial-C 2019"]
[Site "Polanica-Zdroj"]
[Date "2019.08.18"]
[Round "2.24"]
[White "Wilgosz, Tomasz"]
[Black "Grzelak, Piotr"]
[Result "0-1"]
[ECO "C02"]
[WhiteElo "1513"]
[BlackElo "1673"]
[Annotator "NA"]
[PlyCount "108"]
[EventDate "2019.08.17"]
[EventType "swiss"]
[EventCountry "POL"]
[SourceTitle "playchess.com"]
[Source "ChessBase"]
[SourceQuality "1"]
[TimeControl "40/5400+30:1800+30"]

1. e4 {[%emt 0:00:00]} e6 {[%emt 0:00:00]} 2. d4 {[%emt 0:00:00]} d5 {[%emt 0:00:00]} 3. e5 {[%emt 0:00:05]} c5 {[%emt 0:00:04]} 4. c3 {[%emt 0:00:10]} Nc6 {[%emt 0:00:11]} 5. Nf3 {[%emt 0:00:10]} Bd7 {[%emt 0:00:45]} 6. Bd3 {[%emt 0:00:17]} Qb6 {[%emt 0:07:12]} 7. O-O {[%emt 0:00:56]} cxd4 {[%emt 0:00:14]} 8. cxd4 {[%emt 0:00:10]} Nxd4 {[%emt 0:00:36]} 9. Nxd4 {[%emt 0:00:10]} Qxd4 {[%emt 0:00:08]} 10. Nc3 {[%emt 0:00:25]} a6 {[%emt 0:01:45]} 11. Qf3 {[%emt 0:03:41]} Ne7 {[%emt 0:02:36]} 12. Rd1 {[%emt 0:11:31]} Qxe5 {[%emt 0:05:51]} 13. Bf4 {[%emt 0:00:57]} Qf6 {[%emt 0:01:36]} 14. Qg3 {[%emt 0:03:04]} Nf5 {[%emt 0:05:00]} 15. Qh3 {[%emt 0:10:35]} Bd6 {[%emt 0:07:02]} 16. Bxf5 {[%emt 0:02:53]} Bxf4 {[%emt 0:01:07]} 17. Nxd5 {[%emt 0:03:56]} Qxf5 {[%emt 0:07:08]} 18. Qxf5 {[%emt 0:02:05]} exf5 {[%emt 0:00:23]} 19. Nxf4 {[%emt 0:01:00]} Be6 {[%emt 0:00:47]} 20. Rd6 {[%emt 0:02:27]} Rd8 {[%emt 0:08:41]} 21. Rb6 {[%emt 0:01:32]} Bc8 {[%emt 0:01:57]} 22. Re1+ {[%emt 0:02:32]} Kf8 {[%emt 0:00:40]} 23. Rc1 {[%emt 0:02:11]} g6 {[%emt 0:02:10]} 24. g3 {[%emt 0:02:15]} Kg7 {[%emt 0:01:23]} 25. Rc7 {[%emt 0:07:04]} Rhe8 {[%emt 0:04:48]} 26. h4 {[%emt 0:01:52]} Rd7 {[%emt 0:07:44]} 27. Rc3 {[%emt 0:04:11]} Red8 {[%emt 0:13:18]} 28. a3 {[%emt 0:09:58]} Re7 {[%emt 0:01:09]} 29. Kf1 {[%emt 0:19:00]} Rd1+ {[%emt 0:01:35]} 30. Kg2 {[%emt 0:01:49]} Be6 {[%emt 0:01:21]} 31. Re3 {[%emt 0:02:28]} Kf6 {[%emt 0:02:33]} 32. Kf3 {[%emt 0:01:18]} Rd2 {[%emt 0:00:59]} 33. g4 {[%emt 0:01:45]} fxg4+ {[%emt 0:00:29]} 34. Ke4 {[%emt 0:00:18]} Kg7 {[%emt 0:00:00]} 35. Nxe6+ {[%emt 0:01:07]} Rxe6+ {[%emt 0:00:00]} 36. Rxe6 {[%emt 0:00:25]} fxe6 {[%emt 0:00:00]} 37. Kf4 {[%emt 0:00:53]} Rxf2+ {[%emt 0:00:10]} 38. Kxg4 {[%emt 0:00:09]} Rxb2 {[%emt 0:00:40]} 39. Rxe6 {[%emt 0:00:37]} Kf7 {[%emt 0:00:26]} 40. Rd6 {[%emt 0:00:26]} Ke7 {[%emt 0:00:20]} 41. Rd3 {[%emt 0:30:11]} Re2 {[%emt 0:31:27]} 42. Kg5 {[%emt 0:00:50]} Re5+ {[%emt 0:00:57]} 43. Kf4 {[%emt 0:00:38]} Rf5+ {[%emt 0:00:23]} 44. Kg4 {[%emt 0:00:14]} h5+ {[%emt 0:00:24]} 45. Kg3 {[%emt 0:00:09]} b5 {[%emt 0:00:40]} 46. Rc3 {[%emt 0:01:12]} Kd6 {[%emt 0:00:36]} 47. Rc8 {[%emt 0:00:57]} Rf6 {[%emt 0:00:43]} 48. Rc1 {[%emt 0:00:43]} Kd5 {[%emt 0:00:39]} 49. Rc8 {[%emt 0:00:36]} Rc6 {[%emt 0:00:40]} 50. Rg8 {[%emt 0:00:44]} Kc4 {[%emt 0:00:51]} 51. Kf4 {[%emt 0:00:16]} Kb3 {[%emt 0:00:39]} 52. Kg5 {[%emt 0:00:14]} Kxa3 {[%emt 0:00:25]} 53. Rxg6 {[%emt 0:00:16]} Rxg6+ {[%emt 0:00:14]} 54. Kxg6 {[%emt 0:00:04]} b4 {[%emt 0:00:13]} 0-1

[Event "55th Rubinstein Memorial-C 2019"]
[Site "Polanica-Zdroj"]
[Date "2019.08.18"]
[Round "2.25"]
[White "Szeliga, Sebastian"]
[Black "Topola, Rafal"]
[Result "0-1"]
[ECO "B44"]
[WhiteElo "1506"]
[BlackElo "1660"]
[Annotator "NA"]
[PlyCount "90"]
[EventDate "2019.08.17"]
[EventType "swiss"]
[EventCountry "POL"]
[SourceTitle "playchess.com"]
[Source "ChessBase"]
[SourceQuality "1"]
[TimeControl "40/5400+30:1800+30"]

1. e4 {[%emt 0:00:00]} c5 {[%emt 0:00:00]} 2. Nf3 {[%emt 0:00:00]} e6 {[%emt 0:00:00]} 3. d4 {[%emt 0:01:30]} cxd4 {[%emt 0:00:00]} 4. Nxd4 {[%emt 0:00:05]} Nc6 {[%emt 0:00:03]} 5. Nf3 {[%emt 0:07:06]} Qc7 {[%emt 0:00:20]} 6. Be3 {[%emt 0:00:34]} Nf6 {[%emt 0:01:01]} 7. Nbd2 {[%emt 0:00:32]} d5 {[%emt 0:01:11]} 8. Bd3 {[%emt 0:05:22]} Be7 {[%emt 0:01:52]} 9. h3 {[%emt 0:07:14]} O-O {[%emt 0:00:54]} 10. O-O {[%emt 0:00:11]} Rd8 {[%emt 0:02:01]} 11. exd5 {[%emt 0:03:52]} Nxd5 {[%emt 0:01:29]} 12. Qe2 {[%emt 0:00:50]} Nxe3 {[%emt 0:00:24]} 13. Qxe3 {[%emt 0:00:19]} b6 {[%emt 0:10:30]} 14. Rfd1 {[%emt 0:11:11]} Bb7 {[%emt 0:00:17]} 15. a3 {[%emt 0:00:52]} Bf6 {[%emt 0:03:04]} 16. Rab1 {[%emt 0:04:53]} Nd4 {[%emt 0:02:28]} 17. Nxd4 {[%emt 0:06:17]} Bxd4 {[%emt 0:00:01]} 18. Qe2 {[%emt 0:00:02]} Qe5 {[%emt 0:07:21]} 19. b3 {[%emt 0:03:58]} Qxe2 {[%emt 0:12:15]} 20. Bxe2 {[%emt 0:00:09]} Rac8 {[%emt 0:00:03]} 21. Bd3 {[%emt 0:00:52]} g6 {[%emt 0:01:26]} 22. Kf1 {[%emt 0:11:06]} Kg7 {[%emt 0:00:27]} 23. Ne4 {[%emt 0:01:11]} h6 {[%emt 0:04:20]} 24. Ng3 {[%emt 0:01:23]} e5 {[%emt 0:03:33]} 25. c4 {[%emt 0:00:46]} f5 {[%emt 0:01:11]} 26. f3 {[%emt 0:01:54]} Rc7 {[%emt 0:00:41]} 27. Ne2 {[%emt 0:01:00]} Rcd7 {[%emt 0:00:40]} 28. Nxd4 {[%emt 0:02:11]} Rxd4 {[%emt 0:00:22]} 29. Ke2 {[%emt 0:01:02]} Kf6 {[%emt 0:00:39]} 30. Bc2 {[%emt 0:00:19]} e4 {[%emt 0:07:34]} 31. Rxd4 {[%emt 0:01:58]} Rxd4 {[%emt 0:00:02]} 32. Rd1 {[%emt 0:00:16]} Rxd1 {[%emt 0:00:16]} 33. Bxd1 {[%emt 0:00:07]} exf3+ {[%emt 0:00:12]} 34. gxf3 {[%emt 0:00:11]} Ke5 {[%emt 0:00:25]} 35. Ke3 {[%emt 0:00:22]} f4+ {[%emt 0:00:04]} 36. Kd3 {[%emt 0:00:30]} g5 {[%emt 0:00:28]} 37. b4 {[%emt 0:00:35]} Bc8 {[%emt 0:00:10]} 38. c5 {[%emt 0:02:14]} bxc5 {[%emt 0:00:07]} 39. bxc5 {[%emt 0:00:05]} Bxh3 {[%emt 0:00:12]} 40. c6 {[%emt 0:01:45]} Bf1+ {[%emt 0:01:03]} 41. Kd2 {[%emt 0:30:14]} Kd6 {[%emt 0:30:14]} 42. Ba4 {[%emt 0:00:22]} Bc4 {[%emt 0:00:43]} 43. Ke1 {[%emt 0:01:03]} Bd5 {[%emt 0:00:06]} 44. c7 {[%emt 0:00:19]} Kxc7 {[%emt 0:00:04]} 45. Be8 {[%emt 0:00:04]} Bxf3 0-1

[Event "55th Rubinstein Memorial-C 2019"]
[Site "Polanica-Zdroj"]
[Date "2019.08.18"]
[Round "2.26"]
[White "Ursnik, Patryk"]
[Black "Stoop, Jan"]
[Result "1-0"]
[ECO "C47"]
[WhiteElo "1497"]
[BlackElo "1654"]
[Annotator "NA"]
[PlyCount "79"]
[EventDate "2019.08.17"]
[EventType "swiss"]
[EventCountry "POL"]
[SourceTitle "playchess.com"]
[Source "ChessBase"]
[SourceQuality "1"]
[TimeControl "40/5400+30:1800+30"]

1. e4 {[%emt 0:00:00]} e5 {[%emt 0:00:00]} 2. Nf3 {[%emt 0:00:06]} Nc6 {[%emt 0:00:00]} 3. Nc3 {[%emt 0:00:21]} Nf6 {[%emt 0:00:00]} 4. d4 {[%emt 0:00:08]} exd4 {[%emt 0:00:07]} 5. Nxd4 {[%emt 0:00:15]} Bb4 {[%emt 0:00:07]} 6. Nxc6 {[%emt 0:00:15]} bxc6 {[%emt 0:00:06]} 7. Bd3 {[%emt 0:00:10]} d5 {[%emt 0:01:19]} 8. exd5 {[%emt 0:00:58]} cxd5 {[%emt 0:00:06]} 9. O-O {[%emt 0:00:12]} O-O {[%emt 0:00:20]} 10. Bg5 {[%emt 0:00:40]} c6 {[%emt 0:00:12]} 11. Qf3 {[%emt 0:01:58]} Be7 {[%emt 0:01:15]} 12. h3 {[%emt 0:04:17]} Rb8 {[%emt 0:00:52]} 13. b3 {[%emt 0:01:19]} h6 {[%emt 0:02:59]} 14. Bxh6 {[%emt 0:02:01]} Bd6 {[%emt 0:12:51]} 15. Bf4 {[%emt 0:01:21]} Qc7 {[%emt 0:05:37]} 16. Ne2 {[%emt 0:03:20]} Be6 {[%emt 0:04:28]} 17. Bxd6 {[%emt 0:01:59]} Qxd6 {[%emt 0:00:06]} 18. Nf4 {[%emt 0:00:33]} Rfe8 {[%emt 0:02:13]} 19. Rfe1 {[%emt 0:05:59]} Bd7 {[%emt 0:17:32]} 20. a4 {[%emt 0:02:38]} Qb4 {[%emt 0:04:03]} 21. c3 {[%emt 0:09:10]} Qd6 {[%emt 0:03:20]} 22. b4 {[%emt 0:02:49]} d4 {[%emt 0:03:11]} 23. Red1 {[%emt 0:03:12]} Qc7 {[%emt 0:03:30]} 24. cxd4 {[%emt 0:06:34]} Rxb4 {[%emt 0:00:47]} 25. g3 Qa5 {[%emt 0:07:28]} 26. Bc2 {[%emt 0:21:30]} Bf5 {[%emt 0:03:16]} 27. Bxf5 {[%emt 0:01:06]} Qxf5 {[%emt 0:00:07]} 28. Qxc6 {[%emt 0:00:51]} Rc8 {[%emt 0:05:32]} 29. Qf3 {[%emt 0:05:49]} g5 {[%emt 0:02:33]} 30. Qd3 {[%emt 0:00:46]} Qd7 {[%emt 0:04:37]} 31. Qd2 {[%emt 0:00:54]} Rxa4 {[%emt 0:02:06]} 32. Rxa4 {[%emt 0:02:13]} Qxa4 {[%emt 0:00:08]} 33. Nd5 {[%emt 0:04:59]} Nxd5 {[%emt 0:02:16]} 34. Qxg5+ {[%emt 0:00:06]} Kh8 {[%emt 0:01:21]} 35. Qh5+ {[%emt 0:07:06]} Kg7 {[%emt 0:00:29]} 36. Qg4+ {[%emt 0:00:44]} Kh7 {[%emt 0:01:08]} 37. Re1 {[%emt 0:02:56]} Qc6 {[%emt 0:05:00]} 38. Re5 {[%emt 0:01:05]} Nf6 {[%emt 0:00:59]} 39. Qf5+ {[%emt 0:00:31]} Kg7 {[%emt 0:00:25]} 40. Rc5 {[%emt 0:00:16]} 1-0

[Event "55th Rubinstein Memorial-C 2019"]
[Site "Polanica-Zdroj"]
[Date "2019.08.18"]
[Round "2.27"]
[White "Jaroszuk, Marcin"]
[Black "Chmielewski, Miroslaw"]
[Result "1-0"]
[ECO "A02"]
[WhiteElo "1496"]
[BlackElo "1646"]
[Annotator "NA"]
[PlyCount "48"]
[EventDate "2019.08.17"]
[EventType "swiss"]
[EventCountry "POL"]
[SourceTitle "playchess.com"]
[Source "ChessBase"]
[SourceQuality "1"]
[TimeControl "40/5400+30:1800+30"]

1. f4 {[%emt 0:00:00]} c5 {[%emt 0:04:57]} 2. Nf3 {[%emt 0:00:00]} Nc6 {[%emt 0:00:05]} 3. e3 {[%emt 0:00:00]} d6 {[%emt 0:00:34]} 4. Be2 {[%emt 0:01:48]} g6 {[%emt 0:04:31]} 5. O-O {[%emt 0:01:31]} Bg7 {[%emt 0:00:06]} 6. d3 {[%emt 0:00:50]} e6 {[%emt 0:05:35]} 7. c3 {[%emt 0:02:25]} Nge7 {[%emt 0:00:25]} 8. e4 {[%emt 0:00:45]} O-O {[%emt 0:06:32]} 9. Qe1 {[%emt 0:00:46]} Bd7 {[%emt 0:11:08]} 10. Na3 {[%emt 0:03:25]} d5 {[%emt 0:04:42]} 11. Be3 {[%emt 0:06:00]} b6 {[%emt 0:02:39]} 12. Rd1 {[%emt 0:01:34]} Nc8 {[%emt 0:03:06]} 13. g4 {[%emt 0:02:29]} f5 {[%emt 0:01:39]} 14. gxf5 {[%emt 0:04:12]} gxf5 {[%emt 0:00:16]} 15. e5 {[%emt 0:01:15]} N8e7 {[%emt 0:38:19]} 16. Qh4 {[%emt 0:07:04]} Ng6 {[%emt 0:00:34]} 17. Qh3 {[%emt 0:00:08]} h6 {[%emt 0:04:15]} 18. Kh1 {[%emt 0:01:30]} Be8 {[%emt 0:01:47]} 19. Rg1 {[%emt 0:02:19]} a6 {[%emt 0:03:12]} 20. Nc2 {[%emt 0:02:40]} Bf7 {[%emt 0:02:58]} 21. Rg3 {[%emt 0:01:22]} Re8 {[%emt 0:00:29]} 22. Rdg1 {[%emt 0:00:42]} Nce7 {[%emt 0:00:12]} 23. Nh4 {[%emt 0:01:26]} Kh7 {[%emt 0:02:34]} 24. Bh5 d4 1-0

[Event "55th Rubinstein Memorial-C 2019"]
[Site "Polanica-Zdroj"]
[Date "2019.08.18"]
[Round "2.28"]
[White "Goszyk, Bartosz"]
[Black "Wianecki, Mateusz"]
[Result "0-1"]
[ECO "C11"]
[WhiteElo "1486"]
[BlackElo "1634"]
[Annotator "NA"]
[PlyCount "70"]
[EventDate "2019.08.17"]
[EventType "swiss"]
[EventCountry "POL"]
[SourceTitle "playchess.com"]
[Source "ChessBase"]
[SourceQuality "1"]
[TimeControl "40/5400+30:1800+30"]

1. e4 {[%emt 0:00:00]} e6 {[%emt 0:03:59]} 2. d4 {[%emt 0:00:00]} d5 {[%emt 0:00:05]} 3. Nc3 {[%emt 0:00:00]} Nf6 {[%emt 0:00:06]} 4. e5 {[%emt 0:00:00]} Ne4 {[%emt 0:00:07]} 5. Nxe4 {[%emt 0:00:41]} dxe4 {[%emt 0:00:01]} 6. Be3 {[%emt 0:01:20]} c5 {[%emt 0:00:09]} 7. Bb5+ {[%emt 0:01:00]} Bd7 {[%emt 0:00:42]} 8. Bxd7+ {[%emt 0:00:26]} Nxd7 {[%emt 0:00:04]} 9. c3 {[%emt 0:01:07]} cxd4 {[%emt 0:01:53]} 10. cxd4 {[%emt 0:00:06]} Bb4+ {[%emt 0:00:14]} 11. Bd2 {[%emt 0:00:05]} Bxd2+ {[%emt 0:04:16]} 12. Qxd2 {[%emt 0:00:06]} O-O {[%emt 0:00:48]} 13. Ne2 {[%emt 0:00:52]} f5 {[%emt 0:08:16]} 14. Nc3 {[%emt 0:02:57]} Nb6 {[%emt 0:00:33]} 15. b3 {[%emt 0:03:13]} Qd7 {[%emt 0:03:56]} 16. O-O {[%emt 0:01:40]} Rad8 {[%emt 0:02:48]} 17. Rfd1 {[%emt 0:00:24]} Nd5 {[%emt 0:01:33]} 18. Rac1 {[%emt 0:01:44]} Rc8 {[%emt 0:03:33]} 19. Nxd5 {[%emt 0:03:38]} Qxd5 {[%emt 0:00:03]} 20. Qb4 {[%emt 0:00:43]} Rxc1 {[%emt 0:11:21]} 21. Rxc1 {[%emt 0:00:06]} Rd8 {[%emt 0:00:43]} 22. Qe7 {[%emt 0:02:32]} Qd7 {[%emt 0:04:57]} 23. Qxd7 {[%emt 0:01:55]} Rxd7 {[%emt 0:00:04]} 24. f3 {[%emt 0:00:12]} e3 {[%emt 0:04:26]} 25. Re1 {[%emt 0:01:36]} f4 {[%emt 0:00:08]} 26. g3 {[%emt 0:00:13]} g5 {[%emt 0:00:12]} 27. gxf4 {[%emt 0:00:28]} gxf4 {[%emt 0:00:01]} 28. Rd1 {[%emt 0:00:05]} Kf7 {[%emt 0:01:02]} 29. Kg2 {[%emt 0:00:46]} Kg6 {[%emt 0:00:07]} 30. Kh3 {[%emt 0:00:12]} Kf5 {[%emt 0:00:38]} 31. Kg2 {[%emt 0:03:54]} Rc7 {[%emt 0:01:45]} 32. a4 {[%emt 0:01:17]} Rc2+ {[%emt 0:00:22]} 33. Kg1 {[%emt 0:00:07]} Rd2 {[%emt 0:01:32]} 34. Re1 {[%emt 0:01:04]} Rxd4 {[%emt 0:00:18]} 35. h4 {[%emt 0:00:24]} Kxe5 {[%emt 0:00:25]} 0-1

[Event "55th Rubinstein Memorial-C 2019"]
[Site "Polanica-Zdroj"]
[Date "2019.08.18"]
[Round "2.29"]
[White "Budzisz, Adrian"]
[Black "Rog, Mateusz"]
[Result "1-0"]
[ECO "B52"]
[WhiteElo "1631"]
[BlackElo "1473"]
[Annotator "NA"]
[PlyCount "55"]
[EventDate "2019.08.17"]
[EventType "swiss"]
[EventCountry "POL"]
[SourceTitle "playchess.com"]
[Source "ChessBase"]
[SourceQuality "1"]
[TimeControl "40/5400+30:1800+30"]

1. e4 {[%emt 0:00:00]} c5 {[%emt 0:00:00]} 2. Nf3 {[%emt 0:00:00]} d6 {[%emt 0:00:00]} 3. Bb5+ {[%emt 0:00:00]} Bd7 {[%emt 0:00:11]} 4. Bxd7+ {[%emt 0:00:06]} Nxd7 {[%emt 0:02:49]} 5. O-O {[%emt 0:01:18]} Ngf6 {[%emt 0:00:29]} 6. Re1 {[%emt 0:02:16]} e6 {[%emt 0:01:08]} 7. b3 {[%emt 0:01:34]} Be7 {[%emt 0:02:10]} 8. Bb2 {[%emt 0:00:27]} O-O {[%emt 0:01:43]} 9. c4 {[%emt 0:01:40]} a6 {[%emt 0:01:43]} 10. d4 {[%emt 0:03:16]} b5 {[%emt 0:03:18]} 11. Nbd2 {[%emt 0:04:54]} Rb8 {[%emt 0:02:20]} 12. Qc2 {[%emt 0:05:21]} cxd4 {[%emt 0:04:24]} 13. Nxd4 {[%emt 0:00:27]} Qc7 {[%emt 0:04:13]} 14. Rac1 {[%emt 0:03:15]} bxc4 {[%emt 0:05:00]} 15. Qd1 {[%emt 0:03:22]} Ne5 {[%emt 0:15:54]} 16. Nxc4 {[%emt 0:01:31]} Nxc4 {[%emt 0:00:50]} 17. Rxc4 {[%emt 0:00:18]} Qd7 {[%emt 0:00:54]} 18. Qc2 {[%emt 0:01:24]} d5 {[%emt 0:09:07]} 19. Rc7 {[%emt 0:02:50]} Qd8 {[%emt 0:00:08]} 20. exd5 Nxd5 {[%emt 0:00:14]} 21. Rc4 {[%emt 0:07:50]} Nb4 {[%emt 0:04:42]} 22. Qc3 {[%emt 0:06:06]} Nxa2 {[%emt 0:05:46]} 23. Qe3 {[%emt 0:07:00]} Qd7 {[%emt 0:09:30]} 24. Nc6 {[%emt 0:02:00]} Rb5 {[%emt 0:03:55]} 25. Qd4 {[%emt 0:06:44]} Qxd4 {[%emt 0:05:03]} 26. Nxe7+ {[%emt 0:00:05]} Kh8 {[%emt 0:00:08]} 27. Bxd4 {[%emt 0:00:24]} Rxb3 {[%emt 0:00:53]} 28. Nc6 1-0

[Event "55th Rubinstein Memorial-C 2019"]
[Site "Polanica-Zdroj"]
[Date "2019.08.18"]
[Round "2.30"]
[White "Bialik, Nikodem"]
[Black "Bugaj, Hanna"]
[Result "1/2-1/2"]
[ECO "B33"]
[WhiteElo "1472"]
[BlackElo "1622"]
[Annotator "NA"]
[PlyCount "64"]
[EventDate "2019.08.17"]
[EventType "swiss"]
[EventCountry "POL"]
[SourceTitle "playchess.com"]
[Source "ChessBase"]
[SourceQuality "1"]
[TimeControl "40/5400+30:1800+30"]

1. e4 c5 2. Nf3 Nc6 3. d4 cxd4 4. Nxd4 Nf6 5. Nxc6 bxc6 6. Bd3 e5 7. c4 Be7 8. O-O O-O 9. Be3 d6 10. f3 Ne8 11. Qc2 Nc7 12. Nc3 Ne6 13. Ne2 a5 14. b3 Qc7 15. f4 c5 16. Nc3 Nd4 17. Qf2 f6 18. f5 Bb7 19. Qh4 Bd8 20. g4 Qf7 21. Kf2 Bc6 22. Rg1 h6 23. Qg3 a4 24. bxa4 Bxa4 25. Nxa4 Rxa4 26. Bxd4 cxd4 27. Bc2 Ra6 28. Qd3 Qa7 29. Bb3 Qc5 30. Kf3 Ba5 31. Rac1 Bc3 32. Rc2 Rb8 1/2-1/2

[Event "55th Rubinstein Memorial-C 2019"]
[Site "Polanica-Zdroj"]
[Date "2019.08.18"]
[Round "2.31"]
[White "Mytnik, Kinga"]
[Black "Karalchuk, Alieksej"]
[Result "1-0"]
[ECO "B20"]
[WhiteElo "1620"]
[BlackElo "1443"]
[Annotator "NA"]
[PlyCount "60"]
[EventDate "2019.08.17"]
[EventType "swiss"]
[EventCountry "POL"]
[SourceTitle "playchess.com"]
[Source "ChessBase"]
[SourceQuality "1"]
[TimeControl "40/5400+30:1800+30"]

1. d3 {[%emt 0:00:00]} c5 {[%emt 0:00:00]} 2. e4 {[%emt 0:00:00]} Nc6 {[%emt 0:00:04]} 3. f4 {[%emt 0:00:17]} d6 {[%emt 0:01:36]} 4. Nf3 {[%emt 0:00:32]} Bg4 {[%emt 0:00:09]} 5. c3 {[%emt 0:01:01]} g6 {[%emt 0:01:40]} 6. g3 {[%emt 0:00:56]} Bg7 {[%emt 0:01:13]} 7. Bg2 {[%emt 0:01:42]} e6 {[%emt 0:01:56]} 8. h3 {[%emt 0:02:55]} Bxf3 {[%emt 0:00:17]} 9. Qxf3 {[%emt 0:01:19]} Nge7 {[%emt 0:00:25]} 10. Na3 {[%emt 0:01:54]} Qc7 {[%emt 0:01:07]} 11. Nb5 {[%emt 0:05:11]} Qd7 {[%emt 0:02:03]} 12. Qe2 {[%emt 0:06:57]} f5 {[%emt 0:05:49]} 13. Be3 {[%emt 0:07:12]} O-O-O {[%emt 0:04:59]} 14. O-O-O {[%emt 0:10:48]} Kb8 {[%emt 0:03:14]} 15. Na3 {[%emt 0:03:52]} Na5 {[%emt 0:03:11]} 16. Bf2 {[%emt 0:06:22]} e5 {[%emt 0:12:17]} 17. Qd2 {[%emt 0:07:22]} Qa4 {[%emt 0:07:48]} 18. Qc2 {[%emt 0:02:06]} Qxc2+ {[%emt 0:05:23]} 19. Kxc2 {[%emt 0:00:08]} Nac6 {[%emt 0:00:04]} 20. Nc4 {[%emt 0:02:35]} b5 {[%emt 0:02:06]} 21. Ne3 {[%emt 0:01:25]} Kc7 {[%emt 0:04:26]} 22. Rhe1 {[%emt 0:04:26]} fxe4 {[%emt 0:03:30]} 23. dxe4 {[%emt 0:03:14]} Rhf8 {[%emt 0:08:14]} 24. Nd5+ {[%emt 0:03:07]} Nxd5 {[%emt 0:03:22]} 25. exd5 {[%emt 0:00:07]} Ne7 {[%emt 0:00:08]} 26. Be3 {[%emt 0:01:12]} Rf7 {[%emt 0:05:43]} 27. fxe5 {[%emt 0:01:34]} Bxe5 {[%emt 0:00:28]} 28. Bf4 {[%emt 0:06:27]} Bxf4 {[%emt 0:02:21]} 29. gxf4 {[%emt 0:00:12]} Nc8 {[%emt 0:00:06]} 30. Re4 {[%emt 0:03:03]} Rdf8 {[%emt 0:01:05]} 1-0

[Event "55th Rubinstein Memorial-C 2019"]
[Site "Polanica-Zdroj"]
[Date "2019.08.18"]
[Round "2.32"]
[White "Zalega, Maciej"]
[Black "Nowak, Filip"]
[Result "1-0"]
[ECO "B83"]
[WhiteElo "1429"]
[BlackElo "1616"]
[Annotator "NA"]
[PlyCount "77"]
[EventDate "2019.08.17"]
[EventType "swiss"]
[EventCountry "POL"]
[SourceTitle "playchess.com"]
[Source "ChessBase"]
[SourceQuality "1"]
[TimeControl "40/5400+30:1800+30"]

1. e4 {[%emt 0:00:00]} c5 {[%emt 0:00:00]} 2. Nf3 {[%emt 0:00:00]} e6 {[%emt 0:00:00]} 3. d4 {[%emt 0:00:15]} cxd4 {[%emt 0:00:20]} 4. Nxd4 {[%emt 0:00:08]} Nf6 {[%emt 0:00:54]} 5. Nc3 {[%emt 0:00:15]} d6 {[%emt 0:00:21]} 6. Be2 {[%emt 0:00:32]} Be7 {[%emt 0:00:13]} 7. O-O {[%emt 0:01:32]} O-O {[%emt 0:01:13]} 8. f4 {[%emt 0:07:25]} Nc6 {[%emt 0:00:40]} 9. Be3 {[%emt 0:04:30]} a6 {[%emt 0:02:31]} 10. a4 {[%emt 0:01:18]} Qc7 {[%emt 0:02:50]} 11. Kh1 {[%emt 0:01:19]} Nxd4 {[%emt 0:05:27]} 12. Bxd4 {[%emt 0:03:08]} e5 {[%emt 0:03:24]} 13. Be3 {[%emt 0:04:20]} exf4 {[%emt 0:04:37]} 14. Bxf4 {[%emt 0:02:35]} Be6 {[%emt 0:01:33]} 15. Nd5 {[%emt 0:06:07]} Nxd5 {[%emt 0:12:53]} 16. exd5 {[%emt 0:00:07]} Bf5 {[%emt 0:00:38]} 17. c4 {[%emt 0:07:25]} Bf6 {[%emt 0:04:07]} 18. Bxd6 {[%emt 0:09:23]} Qxd6 {[%emt 0:00:42]} 19. Rxf5 {[%emt 0:00:05]} Bxb2 {[%emt 0:03:23]} 20. Rb1 {[%emt 0:00:14]} g6 {[%emt 0:06:44]} 21. Rf3 {[%emt 0:03:06]} Be5 {[%emt 0:00:46]} 22. Qd2 {[%emt 0:04:12]} b6 {[%emt 0:05:41]} 23. Rbf1 {[%emt 0:08:15]} Ra7 {[%emt 0:04:20]} 24. h4 {[%emt 0:04:06]} f6 {[%emt 0:05:48]} 25. Bd3 {[%emt 0:08:07]} Raf7 {[%emt 0:07:01]} 26. Qh6 {[%emt 0:04:39]} f5 {[%emt 0:03:23]} 27. h5 {[%emt 0:05:21]} Rg7 {[%emt 0:01:01]} 28. hxg6 {[%emt 0:04:55]} hxg6 {[%emt 0:01:35]} 29. Rh3 {[%emt 0:02:41]} Qf6 {[%emt 0:05:36]} 30. c5 {[%emt 0:05:41]} bxc5 {[%emt 0:03:59]} 31. d6 {[%emt 0:01:45]} Kf7 {[%emt 0:02:17]} 32. Rb1 {[%emt 0:00:36]} Bxd6 {[%emt 0:04:40]} 33. Re3 {[%emt 0:00:23]} Be5 {[%emt 0:03:15]} 34. Rb7+ {[%emt 0:00:42]} Kg8 {[%emt 0:01:03]} 35. Bc4+ {[%emt 0:00:14]} Rgf7 {[%emt 0:00:29]} 36. Rh3 {[%emt 0:01:51]} Qg7 {[%emt 0:00:58]} 37. Rb6 {[%emt 0:00:37]} Bf6 {[%emt 0:01:02]} 38. Rxf6 {[%emt 0:00:29]} Qxh6 {[%emt 0:01:39]} 39. Rxh6 {[%emt 0:00:04]} 1-0